{"text_format":"1","workbook":"xlsx","n_sheets":11,"sheets":["Berechnung","Erläut.Allgemein","Erläut.Vermögensbew.","Erläut.gepl.Einnahmen","Erläut.gepl.Ausgaben1","Erläut.gepl.Ausgaben2","Erläut.gepl.SparenVerm.","Erläut.ZinsAufw.Abschr.","Eig.Berechnungen 1","Eig.Berechnungen 2 ","Deckblatt"],"not_rendered":{"charts":0,"images":0,"macros":0,"external_links":0,"defined_names":0,"comments":0,"pivot_tables":0},"unopened":[],"bounds":{"document_bytes":16777216,"sheet_cells":100000,"rows_first":2000,"rows_last":500,"rows_between":2000,"halvings":0,"cell_chars":16384,"cell_head_chars":4096},"cells_cut":0,"cells_raw":0,"read":"whole","date_system":"1900"}

{"sheet":"Berechnung","index":0,"n_rows":159,"n_cols":13,"rows_kept":159,"cut":false,"hidden":false,"merged":[]}
[]
[null,"MI Management und Informatik AG",null,null,null,null,null,null,null,null,"Datum:",{"$f":"TODAY()","v":"2024-10-16"}]
[null,"Version 1.3"]
[]
[]
[null,"Budgetplan",null,null,"Jahr:   ",2025]
[]
[null,null,null,null,null,null,"Resultat der geplanten Vermögensbewegung:"]
[null,"für","Fritz Muster"]
[null,null,"4000 Beispiel",null,null,null,null,null,null,"Stand Beginn Jahr",null,"Stand Ende Jahr"]
[]
[null,null,null,null,null,null,"Basissparkonti (eiserne Reserve)",null,null,null,null,{"$f":"C148","v":0}]
[null,null,null,null,null,null,"Sparkonto Säule 3a",null,null,null,null,{"$f":"D148","v":0}]
[null,null,null,null,null,null,"Sparkonto neues Auto",null,null,null,null,{"$f":"E148","v":0}]
[null,null,null,null,null,null,"Sparkonto Hauserwerb",null,null,null,null,{"$f":"F148","v":0}]
[null,null,null,null,null,null,"Weitere Sparkonti, siehe unten",null,null,null,null,{"$f":"G148","v":0}]
[null,null,null,null,null,null,"Wertschriftenbestand",null,null,null,null,{"$f":"H148","v":0}]
[null,null,null,null,null,null,"Vorhandenes Auto",null,null,null,null,{"$f":"I148","v":0}]
[null,null,null,null,null,null,"Vorhandenes Haus/Eigentumswohnung",null,null,null,null,{"$f":"J148","v":0}]
[null,null,null,null,null,null,"Weitere Vermögensmittel, siehe unten",null,null,null,null,{"$f":"K148","v":0}]
[]
[null,null,null,null,null,null,"Total",null,null,{"$f":"SUM(J12:J20)","v":0},null,{"$f":"SUM(L12:L20)","v":0}]
[]
[null,null,"Resultat der Einnahmen- und Ausgabenplanung: "]
[]
[null,null,"Wenn diese Zahl positiv ist, können Sie zusätzlich sparen (oder wollen/können mehr ausgeben!)",null,null,null,null,null,null,null,{"$f":"IF(L53>0,L53,0)","v":0}]
[null,null,{"$f":"IF(L22+L53>=J22,0,\"Achtung: mit Ihrem Budgetplan wird Ihr Vermögen abgebaut auf diese Summe!\")","v":0},null,null,null,null,null,null,null,{"$f":"IF(J22+L27<=J22,IF(M27<=0,0,M27),J22+L27)","v":0},{"$f":"IF(L22+L53<=J22,L22-J22+L53,0)","v":0},{"$f":"IF(J22+L27>=J22,0,J22+L27)","v":0}]
[null,null,"Wenn diese Zahl negativ ist, so müssen Sie Kredit in dieser Höhe aufnehmen, oder mehr arbeiten!",null,null,null,null,null,null,null,{"$f":"IF(J22+L27<=0,J22+L27,0)","v":0}]
[]
[]
[]
[]
[null,null,null,"Geplante Einnahmen",null,null,null,null,null,"Einnahmen","Ausgaben","Überschuss/"]
[null,null,null,null,null,null,null,"Andere Einnahmen",null,null,null,"Defizit"]
[null,"Monat","Lohn","Gratifikation","Neben-","Rente","Bez.v.Sparkonti",null,null,"total","total","total"]
[null,null,null,"Boni","einkommen",null,"f. Verbrauch"]
[]
[null,"Januar",null,null,null,null,null,null,null,{"$f":"SUM(C38:I38)","v":0},{"$f":"SUM(L67,L95)","v":0},{"$f":"J38-K38","v":0}]
[null,"Februar",null,null,null,null,null,null,null,{"$f":"SUM(C39:I39)","v":0},0,{"$f":"J39-K39","v":0}]
[null,"März",null,null,null,null,null,null,null,0,0,0]
[null,"April",null,null,null,null,null,null,null,0,0,0]
[null,"Mai",null,null,null,null,null,null,null,0,0,0]
[null,"Juni",null,null,null,null,null,null,null,0,0,0]
[null,"Juli",null,null,null,null,null,null,null,0,0,0]
[null,"August",null,null,null,null,null,null,null,0,0,0]
[null,"September",null,null,null,null,null,null,null,0,0,0]
[null,"Oktober",null,null,null,null,null,null,null,0,0,0]
[null,"November",null,null,null,null,null,null,null,0,0,0]
[null,"Dezember",null,null,null,null,null,null,null,0,0,0]
[null,"Zins/Aufw.,Abschr.",null,null,null,null,null,null,null,{"$f":"L143+L144","v":0},{"$f":"-L145","v":0},0]
[]
[]
[null,"Jahr",{"$f":"SUM(C38:C49)","v":0},0,0,0,0,0,0,{"$f":"SUM(J38:J51)","v":0},{"$f":"SUM(K38:K51)","v":0},{"$f":"SUM(L38:L51)","v":0}]
[]
[]
[]
[]
[null,"Budgetplan (Fortsetzung)"]
[]
[]
[]
[null,null,null,"Geplante Ausgaben 1",null,null,null,null,null,null,null,"Ausgaben"]
[]
[null,"Monat","Mietzins","Hypozins","Wohnneben-","Weitere Wohn-","Essen","Kleider","Versicherung","Steuern","Weiter-","Zwischen-"]
[null,null,"Kosten Haus",null,"kosten","kosten",null,null,"Gesundheit",null,"bildung","total"]
[]
[null,"Januar",null,null,null,null,null,null,null,null,null,{"$f":"SUM(C67:K67)","v":0}]
[null,"Februar",null,null,null,null,null,null,null,null,null,{"$f":"SUM(C68:K68)","v":0}]
[null,"März",null,null,null,null,null,null,null,null,null,0]
[null,"April",null,null,null,null,null,null,null,null,null,0]
[null,"Mai",null,null,null,null,null,null,null,null,null,0]
[null,"Juni",null,null,null,null,null,null,null,null,null,{"$f":"SUM(C72:K72)","v":0}]
[null,"Juli",null,null,null,null,null,null,null,null,null,0]
[null,"August",null,null,null,null,null,null,null,null,null,0]
[null,"September",null,null,null,null,null,null,null,null,null,0]
[null,"Oktober",null,null,null,null,null,null,null,null,null,0]
[null,"November",null,null,null,null,null,null,null,null,null,0]
[null,"Dezember",null,null,null,null,null,null,null,null,null,0]
[]
[]
[null,"Jahr",{"$f":"SUM(C67:C78)","v":0},0,0,0,0,0,0,0,0,0]
[]
[]
[]
[]
[null,"Budgetplan (Fortsetzung)"]
[]
[]
[]
[null,null,null,"Geplante Ausgaben 2",null,null,null,null,null,null,null,"Ausgaben"]
[null,null,null,null,null,null,null,null,null,"Weitere Ausgaben"]
[null,"Monat","Ausgang","Auto","Öff. Verkehr","Bücher","Ferien","Hobbies","Einkauf",null,null,"Zwischen-"]
[null,null,null,"lauf. Kosten",null,"Zeitungen",null,"Sport","Pensionsk.",null,null,"total"]
[]
[null,"Januar",null,null,null,null,null,null,null,null,null,{"$f":"SUM(C95:K95)","v":0}]
[null,"Februar",null,null,null,null,null,null,null,null,null,{"$f":"SUM(C96:K96)","v":0}]
[null,"März",null,null,null,null,null,null,null,null,null,0]
[null,"April",null,null,null,null,null,null,null,null,null,0]
[null,"Mai",null,null,null,null,null,null,null,null,null,0]
[null,"Juni",null,null,null,null,null,null,null,null,null,0]
[null,"Juli",null,null,null,null,null,null,null,null,null,0]
[null,"August",null,null,null,null,null,null,null,null,null,0]
[null,"September",null,null,null,null,null,null,null,null,null,0]
[null,"Oktober",null,null,null,null,null,null,null,null,null,0]
[null,"November",null,null,null,null,null,null,null,null,null,0]
[null,"Dezember",null,null,null,null,null,null,null,null,null,0]
[]
[]
[null,"Endbestand",{"$f":"SUM(C95:C106)","v":0},0,0,0,0,0,0,0,0,0]
[]
[]
[]
[]
[null,"Budgetplan:  Geplante Veränderung der Vermögensmittel"]
[]
[]
[]
[null,null,null,"Geplante Einzahlungen auf Sparkonti",null,null,null,"        Geplante Veränderung Vermögensmittel",null,null,null,"Sparen"]
[null,null,null,"Einzahlung Eingabe positiv",null,null,null,"            Kauf / Aufwertung Eingabe positiv"]
[null,null,null,"Bezug Eingabe negativ",null,null,null,"            Verkauf / Abschreibungen Eingabe negativ"]
[null,"Monat","Basis-","Sparen ","Sparen","Sparen",null,"Wertschriften-","Auto","Haus/Eigen-"]
[null,null,"sparen","Säule 3a","Auto","Haus",null,"portefeuille",null,"tumswohng.",null,"total"]
[]
[null,"Anfangs-"]
[null,"bestand",{"$f":"J12","v":0},{"$f":"J13","v":0},{"$f":"J14","v":0},{"$f":"J15","v":0},{"$f":"J16","v":0},{"$f":"J17","v":0},{"$f":"J18","v":0},{"$f":"J19","v":0},{"$f":"J20","v":0},{"$f":"SUM(C125:K125)","v":0}]
[]
[null,"Januar",null,null,null,null,null,null,null,null,null,{"$f":"SUM(C127:K127)","v":0}]
[null,"Februar",null,null,null,null,null,null,null,null,null,{"$f":"SUM(C128:K128)","v":0}]
[null,"März",null,null,null,null,null,null,null,null,null,0]
[null,"April",null,null,null,null,null,null,null,null,null,0]
[null,"Mai",null,null,null,null,null,null,null,null,null,0]
[null,"Juni",null,null,null,null,null,null,null,null,null,0]
[null,"Juli",null,null,null,null,null,null,null,null,null,0]
[null,"August",null,null,null,null,null,null,null,null,null,0]
[null,"September",null,null,null,null,null,null,null,null,null,0]
[null,"Oktober",null,null,null,null,null,null,null,null,null,0]
[null,"November",null,null,null,null,null,null,null,null,null,0]
[null,"Dezember",null,null,null,null,null,null,null,null,null,0]
[]
[null,"Zugang",{"$f":"IF(SUM(C127:C138)>0,SUM(C127:C138),0)","v":0},{"$f":"IF(SUM(D127:D138)>0,SUM(D127:D138),0)","v":0},0,0,0,0,0,0,0,0]
[null,"Abgang",{"$f":"IF(SUM(C127:C138)<0,SUM(C127:C138),0)","v":0},0,0,0,0,0,0,0,0,0]
[]
[null,"Nettozins   +",null,null,null,null,null,null,null,null,null,0]
[null,"Aufwertung +",null,null,null,null,null,null,null,null,null,0]
[null,"Abschreibg -",null,null,null,null,"-",null,null,null,null,0]
[]
[]
[null,"Endbestand",{"$f":"SUM(C125,C140,C141,C143,C144,C145)","v":0},{"$f":"SUM(D125,D140,D141,D143,D144,D145)","v":0},{"$f":"SUM(E125,E140,E141,E143,E144,E145)","v":0},{"$f":"SUM(F125,F140,F141,F143,F144,F145)","v":0},{"$f":"SUM(G125,G140,G141,G143,G144,G145)","v":0},{"$f":"MAX(SUM(H125,H140,H141,H143,H144,H145),0)","v":0},0,0,0,{"$f":"SUM(C148:K148)","v":0}]
[]
[]
[]
[]
[]
[]
[]
[]
[]
[]
[null,"Copyright © 2000 by MI AG",null,"Stand 1.1.2025"]

{"sheet":"Erläut.Allgemein","index":1,"n_rows":25,"n_cols":2,"rows_kept":25,"cut":false,"hidden":false,"merged":[]}
[]
[null,"MI Management und Informatik AG"]
[null,"Version 1.3"]
[]
[]
[]
[null,"Erläuterungen Budgetplan (1)"]
[]
[]
[]
[null,"1.     Allgemeines"]
[]
[null,"Mit diesem Programm können Sie Ihr persönliches Jahresbudget erstellen."]
[null,"Sie können die Zahlen ändern und sehen sofort die Auswirkung in einem eventuellen"]
[null,"Budgetüberschuss bzw. -Defizit oder in der Vermögensentwicklung."]
[]
[null,"Ihre Daten geben Sie im blauen Feld und in den weissen Feldern ein"]
[]
[null,"Genaue Beträge eingeben wenn bekannt, gerundete Beträge wenn geschätzt"]
[]
[null,"Tipp:"]
[null,"Bei Kopieren, Eingabe als \"Werte\""]
[null,"\"Ausschneiden\" nicht verwenden"]
[]
[null,"Man kann in die Budgetkolonnen auch Textkommentar schreiben"]

{"sheet":"Erläut.Vermögensbew.","index":2,"n_rows":79,"n_cols":3,"rows_kept":79,"cut":false,"hidden":false,"merged":[]}
[]
[null,"MI Management und Informatik AG"]
[null,"Version 1.3"]
[]
[null,"Erläuterungen Budgetplan (2)"]
[]
[null,"2.     Hinweise zu einzelnen Rubriken"]
[]
[null,"2.1  Geplante Vermögensbewegung"]
[]
[]
[null,"Generell"]
[null,null,"Geben Sie den Stand der einzelnen Rubriken Anfang Jahr ein"]
[null,null,"inkl. stehengelassene Zinsen, Vermögenserträge, Vermögensaufwertungen"]
[null,null,"des Vorjahres"]
[null,null,"Kursverluste und Abschreibungen des Vorjahres abgezogen"]
[]
[]
[null,"Basissparkonti"]
[]
[null,null,"Ein oder mehrere Sparkonti"]
[]
[null,"Achtung:","Kontokorrentkonti im Budgetplan, also hier, nicht erfassen"]
[null,null,"Sie dienen dem laufenden Zahlungsverkehr"]
[null,null,"Bei einem geplanten Übertrag auf eines der (längerfristig orientierten)"]
[null,null,"Sparkonti ist es dort hingegen als Zugang zu erfassen, weil"]
[null,null,"vermögensbildend"]
[]
[]
[null,"Sparkonto Säule 3a"]
[]
[null,null,"Konto Säule3a und/oder Fondsparkonto Säule3a (Gebundene Vorsorge)"]
[null,null,"bzw. staatlich privilegiertes, steuerbefreites Sparen"]
[]
[]
[null,"Sparkonto neues Auto"]
[]
[null,null,"Sparkonto für Erwerb neues Auto"]
[]
[]
[null,"Sparkonto Hauserwerb"]
[]
[null,null,"Konto für Erwerb Haus oder Eigentumswohnung"]
[]
[null,null,"Reserve für Hausunterhalt"]
[]
[]
[null,"Weitere Sparkonti"]
[]
[null,null,"z.B. auch gewährte Darlehen"]
[]
[]
[]
[null,"Wertschriftenbestand"]
[]
[null,null,"Wert zu Jahresbeginn"]
[]
[]
[null,"Vorhandenes Auto"]
[]
[null,null,"Wert zu Jahresbeginn"]
[]
[]
[null,"Vorhandenes Haus/Eigentumswohnung, Mobiliar"]
[]
[null,null,"Ungefährer Marktwert (vorsichtig geschätzt) nach Abzug"]
[null,null,"der Hypothekarschulden"]
[]
[null,null,"Aktueller Wert des Mobiliars"]
[]
[]
[null,"Weitere Vermögensmittel, andere Schulden"]
[]
[null,null,"Z.B. Motorrad, Schiff, Antiquitäten etc. etc."]
[]
[null,null,"Andere Schulden, z.B. Kleinkredit, sind hier negativ zu zählen"]
[]
[null,null,"Die Summe aus \"Weitere Vermögensmittel\" und \"andere Schulden\" kann"]
[null,null,"somit ev. negativ sein"]

{"sheet":"Erläut.gepl.Einnahmen","index":3,"n_rows":49,"n_cols":5,"rows_kept":49,"cut":false,"hidden":false,"merged":[]}
[]
[null,"MI Management und Informatik AG"]
[null,"Version 1.3"]
[]
[]
[null,"Erläuterungen Budgetplan (3)"]
[]
[]
[null,"2.2  Geplante Einnahmen"]
[]
[]
[null,"Lohn"]
[]
[null,null,"Nettolohn nach allen Abzügen"]
[]
[]
[null,"Gratifikation, Boni"]
[]
[null,null,"Netto nach allen Abzügen"]
[]
[]
[null,"Nebeneinkommen"]
[]
[null,null,"Netto nach allen Abzügen und Gewinnungskosten"]
[]
[null,null,"Zinseinnahmen aus Vermietung/Untervermietung"]
[]
[]
[null,"Rente"]
[]
[null,null,"Renteneinkommen",null,"AHV-/IV-Renten"]
[null,null,null,null,"Pensionskassenrenten"]
[null,null,null,null,"Private Leibrenten"]
[null,null,null,null,"Zeitrenten"]
[]
[]
[null,"Bezug ab Sparkonti für Verbrauch"]
[]
[null,null,"Bezüge aus den Sparkonti zur Bestreitung der Lebenskosten "]
[]
[]
[null,"Andere Einnahmen"]
[null,null,"z.B."]
[null,null,"Auszahlungen aus Lebensversicherung oder Kapitalauszahlung aus"]
[null,null,"Pensionskasse statt Rentenbezug"]
[null,null,"Zusätzlich erwartete Erlöse bei Verkauf von abgeschriebenem oder im"]
[null,null,"Budget nicht erfasstem Vermögen"]
[null,null,"Vorbezug Wohneigentumsförderung aus Pensionskasse"]
[null,null,"Ist zusätzlich in entsprechende Vermögenskonti aufzunehmen"]

{"sheet":"Erläut.gepl.Ausgaben1","index":4,"n_rows":80,"n_cols":3,"rows_kept":80,"cut":false,"hidden":false,"merged":[]}
[]
[null,"MI Management und Informatik AG"]
[null,"Version 1.3"]
[]
[]
[null,"Erläuterungen Budgetplan (4)"]
[]
[]
[null,"2.3  Geplante Ausgaben 1"]
[]
[]
[null,"Mietzins, Kosten Haus, Kosten Mobiliar"]
[]
[null,null,"Reiner Mietzins"]
[]
[null,null,"Laufende Unterhaltskosten für Haus/Eigentumswohnung und"]
[null,null,"für Mobiliar (nicht wertvermehrend) und"]
[]
[null,null,"laufende Kosten Umgebung/Garten"]
[]
[]
[null,"Hypothekarzins"]
[]
[null,null,"Reiner Hypothekarzins"]
[]
[]
[null,"Wohnnebenkosten"]
[]
[null,null,"Heizung, Wasser, Licht (wenn inklusive), Kabelanschluss (wenn inklusive) etc."]
[]
[]
[null,"Weitere Wohnkosten"]
[]
[null,null,"Licht und Telefon (wenn separat), Mobiltelefon, Radio, Fernsehen,"]
[null,null,"Kabelanschluss (wenn separat), Internetanschluss, Computer/Notebook etc."]
[]
[]
[null,"Essen"]
[]
[null,null,"Normale Essensausgaben, ohne Ausgang"]
[]
[]
[null,"Kleider"]
[]
[null,null,"Anschaffung, Reinigung"]
[]
[]
[]
[]
[]
[]
[]
[]
[null,"Versicherung, Gesundheit"]
[]
[null,null,"Prämien für:"]
[null,null,"Krankenkasse"]
[null,null,"Lebensversicherung"]
[null,null,"Hausrat-/Feuer-/Wasserschaden-/Diebstahlversicherung"]
[null,null,"Haftpflichtversicherung"]
[]
[null,null,"Selbstbehalte bei Versicherungsleistungen"]
[]
[null,null,"Selbstbezahlte Medikamente"]
[null,null,"Selbstbezahlte Therapien"]
[]
[]
[null,"Steuern"]
[]
[null,null,"Gemeindesteuer"]
[null,null,"Kantonssteuer"]
[null,null,"Direkte Bundessteuer"]
[]
[null,null,"auch Steuern für Zweitwohnung"]
[]
[]
[null,"Weiterbildung"]
[]
[null,null,"Selbstbezahlte Kurse"]
[null,null,"auch Sprachkurse"]

{"sheet":"Erläut.gepl.Ausgaben2","index":5,"n_rows":63,"n_cols":3,"rows_kept":63,"cut":false,"hidden":false,"merged":[]}
[]
[null,"MI Management und Informatik AG"]
[null,"Version 1.3"]
[]
[]
[null,"Erläuterungen Budgetplan (5)"]
[]
[]
[null,"2.4  Geplante Ausgaben 2"]
[]
[]
[null,"Ausgang"]
[]
[null,null,"Theater, Kino, Sportanlässe, auswärts Essen etc."]
[]
[]
[null,"Auto laufende Kosten"]
[]
[null,null,"Benzin, Reparaturen, Bussen, Vignetten"]
[null,null,"Selbstbehalt bei Unfällen"]
[null,null,"Autohaftpflicht-/Kasko-/Autounfallversicherung"]
[null,null,"Autosteuern"]
[]
[]
[null,"Öffentlicher Verkehr"]
[]
[null,null,"Billette Bahn/Bus"]
[null,null,"Abonnemente (GA, Halbtax)"]
[]
[]
[null,"Bücher, Zeitungen"]
[]
[null,null,"Kauf, Abonnemente"]
[null,null,"auch E-Books"]
[null,null,"Bibliotheksgebühren"]
[]
[]
[null,"Ferien, Erholung"]
[]
[null,null,"Reisen"]
[null,null,"Ausflüge"]
[null,null,"Skiweekends"]
[null,null,"Wanderweekends"]
[null,null,"Wellnesskuren"]
[]
[]
[]
[]
[]
[]
[]
[]
[]
[null,"Hobbies, Sport"]
[]
[null,null,"Kauf von Geräten und Material (Velo, Skis etc.)"]
[null,null,"Kursgelder (z.B. für Turnen etc.)"]
[null,null,"Abonnement für Fitnessclub"]
[]
[]
[null,"Einkauf Pensionskasse"]
[]
[null,null,"Einkauf fehlende Versicherungsjahre (steuerbefreit)"]

{"sheet":"Erläut.gepl.SparenVerm.","index":6,"n_rows":84,"n_cols":3,"rows_kept":84,"cut":false,"hidden":false,"merged":[]}
[]
[null,"MI Management und Informatik AG"]
[null,"Version 1.3"]
[]
[]
[null,"Erläuterungen Budgetplan (6)"]
[]
[]
[null,"2.5  Geplante Einzahlungen auf Sparkonti"]
[]
[]
[null,"Basissparen"]
[]
[null,null,"Allgemeines Sparen, eiserne Reserve"]
[]
[]
[null,"Sparen Säule 3a"]
[]
[null,null,"Steuerbefreite gebundene Vorsorge bzw. staatlich privilegiertes Sparen"]
[]
[null,null,"Bezüge Wohneigentumsförderung hier negativ eingeben "]
[]
[]
[null,"Sparen Auto"]
[]
[null,null,"Einlagen auf das spezielle Konto"]
[]
[null,null,"Bei Kauf verwendete Mittel hier negativ und "]
[null,null,"gleichzeitig Kaufpreis unter Auto eintragen"]
[]
[]
[null,"Sparen Haus, Reserve für Unterhalt Haus"]
[]
[null,null,"Einlagen auf das spezielle Konto"]
[]
[null,null,"Bei Kauf  verwendete Mittel hier negativ eintragen und "]
[null,null,"gleichzeitig Nettokaufpreis unter Haus/Eigentumswohnung eintragen"]
[]
[]
[]
[null,"2.6  Geplante Veränderungen Vermögensmittel"]
[]
[]
[null,"Wertschriftenportefeuille"]
[]
[null,null,"Geplante Käufe"]
[]
[null,null,"Geplante Verkäufe als Abgang hier negativ eintragen und gleichzeitig"]
[null,null,"erwarteter Erlös im entsprechenden Sparkonto als Zugang"]
[]
[]
[]
[]
[null,"Auto"]
[]
[null,null,"Kaufpreis des Autos beim Kauf in der Budgetperiode"]
[]
[null,null,"Geplanter Verkauf als Abgang hier negativ eintragen und gleichzeitig"]
[null,null,"erwarteter Erlös im entsprechenden Sparkonto als Zugang"]
[]
[]
[null,"Haus, Eigentumswohnung, Mobiliar"]
[]
[null,null,"Kaufpreis beim Kauf bzw. effektive Baukosten nach Abzug der"]
[null,null,"Hypothekarschulden"]
[]
[null,null,"Allenfalls Aufwertung auf Marktpreis am Ende der Budgetperiode nach"]
[null,null,"Abzug der Hypothekarschulden"]
[]
[null,null,"Wertvermehrende Kosten Haus"]
[]
[null,null,"Geplanter Verkauf als Abgang hier negativ eintragen und gleichzeitig"]
[null,null,"erwarteter Netto-Erlös im entsprechenden Sparkonto als Zugang"]
[]
[]
[null,"Veränderung weitere Vermögensmittel"]
[]
[null,null,"Geplante Käufe hier positiv eintragen"]
[]
[null,null,"Geplante Verkäufe hier negativ eintragen"]
[]
[null,null,"Neue Schulden hier negativ eintragen"]
[]
[null,null,"Tilgung von Schulden hier positiv eintragen"]

{"sheet":"Erläut.ZinsAufw.Abschr.","index":7,"n_rows":33,"n_cols":4,"rows_kept":33,"cut":false,"hidden":false,"merged":[]}
[]
[null,"MI Management und Informatik AG"]
[null,"Version 1.3"]
[]
[]
[null,"Erläuterungen Budgetplan (7)"]
[]
[]
[null,"2.7  Voraussichtliche Zinsen, Aufwertungen und Abschreibungen"]
[]
[]
[null,"Nettozins"]
[]
[null,null,"Erwartete Zinserträge und Dividenden (auch aus Wertschriftenportefeuille)"]
[null,null,"nach Abzug Spesen etc."]
[]
[]
[null,"Aufwertung"]
[]
[null,null,"Erwarteter Vermögenszuwachs aus Kursgewinnen und Wertsteigerungen"]
[null,null,"(Wertschriftenportefeuille, Haus, Eigentumswohnung etc.)"]
[]
[]
[null,"Abschreibungen"]
[]
[null,null,"Voraussichtliche Wertverminderungen auf Wertschriftenportefeuille, Auto,"]
[null,null,"Haus, Eigentumswohnung etc. hier negativ erfassen"]
[]
[]
[]
[]
[]
[null,"Copyright © 2000 by MI AG",null,"Stand 1.1.2019"]

{"sheet":"Eig.Berechnungen 1","index":8,"n_rows":4,"n_cols":2,"rows_kept":4,"cut":false,"hidden":false,"merged":[]}
[]
[null,"Diese Seite ist nicht gesperrt"]
[]
[null,"Hier können Sie eigene Berechnungen zu Ihrem Budget durchführen"]

{"sheet":"Eig.Berechnungen 2 ","index":9,"n_rows":4,"n_cols":2,"rows_kept":4,"cut":false,"hidden":false,"merged":[]}
[]
[null,"Diese Seite ist nicht gesperrt"]
[]
[null,"Hier können Sie eigene Berechnungen zu Ihrem Budget durchführen"]

{"sheet":"Deckblatt","index":10,"n_rows":24,"n_cols":6,"rows_kept":24,"cut":false,"hidden":false,"merged":[]}
[]
[]
[]
[]
[]
[]
[]
[]
[null,null,null,null,"  B u d g e t p l a n          "]
[]
[]
[]
[]
[]
[]
[]
[null,null,null,null," Dokumentation"]
[]
[]
[]
[]
[]
[]
[null,null,{"$f":"TODAY()","v":"2024-10-16"},null,null,"  www.miag.ch"]